bitfinex/quotes_SOLUSD_20251009
["timestamp","ask_amount","ask_price","bid_price","bid_amount"]
[1759973781630,1.79804131,226.68,226.63,0.71]
[1759973781826,1.79804131,226.64,226.59,20.8]
[1759973782051,1.79804131,226.6,226.58,4.41339927]
[1759973782861,1.79804131,226.6,226.58,5.12339927]
[1759973784028,1.79804131,226.6,226.58,5.12338363]
[1759973784867,0.71,226.63,226.58,5.12338363]
[1759973785034,1.79804131,226.62,226.59,0.71]
[1759973785242,1.79804131,226.63,226.59,0.71]
[1759973786154,1.79804131,226.62,226.6,4.41306266]
[1759973787250,1.79804131,226.62,226.6,5.12306266]
[1759973787450,1.79804131,226.62,226.6,4.41306266]
[1759973788667,1.79804131,226.62,226.59,15.44640098]
[1759973789051,1.79804131,226.62,226.59,16.15640098]
[1759973789653,0.71,226.65,226.59,16.15640098]
[1759973789971,1.79804131,226.62,226.59,16.15640098]
[1759973792789,1.79804131,226.6,226.55,10.87647521]
[1759973792960,1.79804131,226.57,226.53,0.71]
[1759973793280,1.79804131,226.58,226.55,20.8]
[1759973793481,1.79804131,226.58,226.56,4.4138418]
[1759973793684,0.71,226.63,226.57,0.71]
[1759973793978,0.71,226.63,226.56,4.4138418]
[1759973793979,1.79804131,226.61,226.56,15.44844631]
[1759973794159,1.79804131,226.61,226.57,0.71]
[1759973794362,0.71,226.61,226.56,15.44844631]
[1759973794561,1.79804131,226.62,226.57,0.71]
[1759973794754,1.79804131,226.63,226.57,0.71]
[1759973796155,1.79804131,226.63,226.58,15.4470827]
[1759973796381,2.47804131,226.62,226.58,16.1570827]
[1759973797258,1.79804131,226.62,226.59,0.71]
[1759973797454,1.79804131,226.62,226.58,15.4470827]
[1759973797655,1.79804131,226.62,226.58,16.1570827]
[1759973800276,1.79804131,226.62,226.58,15.4470827]
[1759973800582,1.79804131,226.62,226.59,0.71]
[1759973800756,0.68,226.64,226.59,0.71]
[1759973800954,1.79804131,226.62,226.59,0.71]
[1759973801571,1.79804131,226.62,226.6,4.41306266]
[1759973802263,1.79804131,226.61,226.6,4.41306266]
[1759973802471,2.47804131,226.61,226.6,4.41306266]
[1759973803084,2.47804131,226.61,226.55,11.03477256]
[1759973803263,1.79804131,226.57,226.55,11.03477256]
[1759973803466,36.23961475,226.69,226.56,0.72]
[1759973803676,1.79804131,226.6,226.57,15.44776448]
[1759973803985,1.79804131,226.6,226.57,16.16776448]
[1759973804357,1.79804131,226.62,226.58,0.72]
[1759973804565,1.79804131,226.64,226.59,0.72]
[1759973804790,1.79804131,226.63,226.59,0.72]
[1759973805085,4.41114014,226.7,226.57,47.16776448]
[1759973805086,1.79804131,226.6,226.57,47.16776448]
[1759973805463,1.79804131,226.59,226.57,47.16776448]
[1759973806079,0.66,226.62,226.57,47.16776448]
[1759973806279,1.79804131,226.6,226.57,47.16776448]
[1759973806480,1.79804131,226.59,226.57,15.44776448]
[1759973807387,1.79804131,226.6,226.57,15.44776448]
[1759973809102,1.79804131,226.6,226.57,16.16776448]
[1759973809458,1.79804131,226.6,226.57,15.44776448]
[1759973809861,2.45804131,226.61,226.57,15.44776448]
[1759973812488,1.79804131,226.59,226.57,4.41364699]
[1759973812694,2.45804131,226.59,226.57,4.41364699]
[1759973812988,1.79804131,226.58,226.57,4.41364699]
[1759973814884,2.45804131,226.59,226.57,4.41364699]
[1759973816376,2.45804131,226.58,226.57,4.41364699]
[1759973816883,2.45804131,226.58,226.5,11.03724172]
[1759973817083,1.79804131,226.6,226.46,0.72]
[1759973817084,1.79804131,226.51,226.46,0.72]
[1759973817282,1.79804131,226.52,226.5,20.8]
[1759973817491,1.79804131,226.51,226.47,16.17457302]
[1759973817797,1.79804131,226.52,226.48,0.72]
[1759973817976,1.79804131,226.52,226.49,0.72]
[1759973818176,25.21328309,226.59,226.46,13.34816547]
[1759973818506,1.79804131,226.51,226.47,0.72]
[1759973818686,1.79804131,226.51,226.48,16.1739032]
[1759973818902,1.79804131,226.52,226.49,0.72]
[1759973819378,1.79804131,226.52,226.48,15.4539032]
[1759973819578,1.79804131,226.52,226.48,16.1739032]
[1759973819792,1.79804131,226.52,226.48,15.4539032]
[1759973819975,2.45804131,226.53,226.49,0.72]
[1759973820404,1.79804131,226.5,226.45,20.8]
[1759973820582,1.79804131,226.47,226.43,32.42]
[1759973820784,1.79804131,226.47,226.44,5.13618088]
[1759973821092,1.79804131,226.47,226.44,18.20073576]
[1759973821402,1.79804131,226.47,226.44,16.17663309]
[1759973821978,12.67451652,226.6,226.44,4.41618088]
[1759973821979,1.79804131,226.45,226.44,4.41618088]
[1759973822399,1.79804131,226.45,226.41,15.45839978]
[1759973822582,1.79804131,226.44,226.41,36.97839978]
[1759973823078,1.79804131,226.43,226.41,36.25839978]
[1759973823273,0.66,226.46,226.41,36.25839978]
[1759973823508,1.79804131,226.44,226.41,36.97839978]
[1759973824191,1.79804131,226.43,226.41,36.97839978]
[1759973824398,0.66,226.54,226.45,20.8]
[1759973824706,0.66,226.54,226.46,0.72]
[1759973824876,1.79804131,226.53,226.46,0.72]
[1759973825502,1.16,226.55,226.46,0.72]
[1759973825681,1.79804131,226.53,226.46,0.72]
[1759973826090,1.79804131,226.53,226.47,15.45458559]
[1759973826396,1.79804131,226.53,226.48,0.69]
[1759973826587,1.79804131,226.53,226.49,0.69]
[1759973827295,1.79804131,226.52,226.5,4.41501103]
[1759973827900,1.15291441,226.52,226.5,4.41501103]
[1759973828606,0.72,226.53,226.5,4.41501103]
[1759973828813,1.15291441,226.52,226.5,4.41501103]
[1759973829803,1.15291441,226.54,226.49,11.03775989]
[1759973830116,1.87291441,226.54,226.49,11.72775989]
[1759973830787,1.87291441,226.57,226.5,0.69]
[1759973831007,1.15291441,226.57,226.5,0.69]
[1759973831607,31.7,226.62,226.52,20.8]
[1759973831803,0.72,226.62,226.54,15.44981018]
[1759973831998,1.87291441,226.62,226.55,0.69]
[1759973832208,1.15291441,226.61,226.55,0.69]
[1759973832997,1.15291441,226.61,226.56,15.44844631]
[1759973833308,1.15291441,226.61,226.56,16.13844631]
[1759973833309,0.72,226.61,226.56,16.13844631]
[1759973834317,1.15291441,226.62,226.57,0.69]
[1759973834510,1.15291441,226.62,226.58,5.1034522]
[1759973834708,1.15291441,226.62,226.58,16.1370827]
[1759973834910,1.87291441,226.64,226.59,0.69]
[1759973835120,32.4,226.68,226.6,0.69]
[1759973835418,1.15291441,226.66,226.6,0.69]
[1759973835631,0.72,226.68,226.6,0.69]
[1759973835632,1.15291441,226.67,226.6,0.69]
[1759973835800,1.15291441,226.68,226.61,20.8]
[1759973836117,1.15291441,226.68,226.62,0.69]
[1759973836489,1.15291441,226.68,226.63,15.4436747]
[1759973836694,1.15291441,226.68,226.64,0.69]
[1759973837020,1.15291441,226.74,226.66,20.8]
[1759973837199,0.72,226.75,226.67,21.49]
[1759973837400,1.15291441,226.74,226.68,0.69]
[1759973837602,0.92,226.78,226.68,0.69]
[1759973837902,1.15291441,226.77,226.68,21.49]
[1759973838111,1.15291441,226.77,226.69,0.69]
[1759973838294,0.92,226.78,226.7,10.87647521]
[1759973838501,0.2,226.78,226.72,36.23754409]
[1759973838826,0.2,226.78,226.73,11.56647521]
[1759973839019,0.2,226.78,226.73,43.24647521]
[1759973839196,0.2,226.78,226.74,0.69]
[1759973839599,1.35291441,226.78,226.72,25.21072688]
[1759973839823,1.15291441,226.76,226.72,25.21072688]
[1759973840116,1.15291441,226.77,226.73,0.69]
[1759973840294,1.35291441,226.78,226.73,0.69]
[1759973840696,1.15291441,226.74,226.68,20.8]
[1759973840897,1.15291441,226.69,226.65,4.41208912]
[1759973841098,1.15291441,226.67,226.65,4.41208912]
[1759973841519,1.15291441,226.68,226.65,4.41208912]
[1759973841709,31.68,226.77,226.65,4.41208912]
[1759973841710,1.87291441,226.67,226.65,4.41208912]
[1759973842018,1.15291441,226.67,226.65,4.41208912]
[1759973842315,1.15291441,226.67,226.62,15.44413829]
[1759973842504,1.15291441,226.68,226.62,16.13413829]
[1759973844212,0.72,226.69,226.62,16.13413829]
[1759973844398,1.15291441,226.68,226.62,16.13413829]
[1759973845715,1.15291441,226.67,226.62,16.13413829]
[1759973845933,1.15291441,226.67,226.63,0.69]
[1759973847337,1.15291441,226.67,226.64,4.41228379]
[1759973847737,1.15291441,226.65,226.6,4.41306266]
[1759973847935,1.15291441,226.71,226.6,4.41306266]
[1759973847936,0.72,226.64,226.6,4.41306266]
[1759973848135,0.72,226.63,226.6,4.41306266]
[1759973848321,0.72,226.69,226.61,0.69]
[1759973848522,1.15291441,226.68,226.61,0.69]
[1759973848930,0.72,226.67,226.6,4.41306266]
[1759973849126,1.15291441,226.64,226.62,4.41267319]
[1759973849436,1.15291441,226.65,226.62,4.41267319]
[1759973849840,1.87291441,226.65,226.62,4.41267319]
[1759973850357,1.15291441,226.63,226.56,0.69]
[1759973850528,1.15291441,226.6,226.54,47.10981018]
[1759973850723,1.15291441,226.6,226.57,20.8]
[1759973850925,1.15291441,226.59,226.57,20.8]
[1759973851141,1.87291441,226.59,226.57,20.8]
[1759973851443,1.15291441,226.59,226.57,20.8]
[1759973851627,1.15291441,226.61,226.57,20.8]
[1759973852030,1.87291441,226.6,226.57,20.8]
[1759973852433,1.87291441,226.6,226.57,25.21346269]
[1759973852731,1.15291441,226.59,226.57,20.8]
[1759973853047,1.87291441,226.58,226.5,11.72748788]
[1759973853354,1.15291441,226.57,226.54,20.8]
[1759973853541,4.41265679,226.63,226.54,20.8]
[1759973853863,1.15291441,226.57,226.54,20.8]
[1759973854024,1.15291441,226.58,226.54,20.8]
[1759973854650,1.87291441,226.58,226.55,4.41403663]
[1759973855624,1.15291441,226.6,226.55,16.15912822]
[1759973855824,0.66,226.59,226.55,15.44912822]
[1759973856044,1.81291441,226.59,226.55,4.41403663]
[1759973857057,0.5,226.61,226.56,0.71]
[1759973857232,32.32,226.68,226.57,0.71]
[1759973857431,1.15291441,226.67,226.59,20.8]
[1759973857747,1.15291441,226.67,226.6,0.71]
[1759973859048,11.02708535,226.72,226.6,0.71]
[1759973859049,20.8,226.72,226.61,15.44503772]
[1759973859257,0.5,226.68,226.62,0.71]
[1759973860832,1.81291441,226.7,226.62,0.71]
[1759973861030,1.81291441,226.7,226.63,15.4436747]
[1759973861230,1.15291441,226.69,226.63,15.4436747]
[1759973862232,1.81291441,226.68,226.6,20.8]
[1759973862435,1.15291441,226.63,226.58,4.4134522]
[1759973862645,1.15291441,226.63,226.6,20.8]
[1759973862845,0.66,226.63,226.6,20.8]
[1759973863039,0.66,226.65,226.6,20.8]
[1759973863358,1.15291441,226.64,226.6,25.2128928]
[1759973863583,0.7,226.67,226.61,0.68]
[1759973863728,1.15291441,226.65,226.61,0.68]
[1759973864454,1.15291441,226.65,226.6,15.44554946]
[1759973864655,1.85291441,226.64,226.6,15.44554946]
[1759973865332,1.15291441,226.64,226.6,16.12554946]
[1759973865533,1.15291441,226.63,226.6,4.4128928]
[1759973866349,1.85291441,226.64,226.6,4.4128928]
[1759973868550,1.15291441,226.63,226.59,4.41325742]
[1759973868746,1.15291441,226.63,226.59,5.09325742]
[1759973870063,1.85291441,226.63,226.59,4.41325742]
[1759973870565,1.15291441,226.63,226.59,5.09325742]
[1759973871447,0.7,226.63,226.59,5.09325742]
[1759973871762,1.15291441,226.63,226.59,5.09325742]
[1759973872062,1.15291441,226.62,226.59,4.41325742]
[1759973873663,1.85291441,226.62,226.59,4.41325742]
[1759973874465,1.15291441,226.62,226.58,4.4134522]
[1759973874673,1.85291441,226.62,226.58,4.4134522]
[1759973875058,1.85291441,226.61,226.58,4.4134522]
[1759973875263,1.85291441,226.6,226.56,4.41377889]
[1759973875481,1.15291441,226.57,226.46,10.87647521]
[1759973875644,4.61165764,226.6,226.46,10.87647521]
[1759973875645,1.15291441,226.53,226.46,11.55647521]
[1759973875978,0.7,226.52,226.46,0.68]
[1759973876141,1.15291441,226.51,226.47,20.8]
[1759973876346,1.15291441,226.51,226.47,21.48]
[1759973876670,1.15291441,226.53,226.48,4.41540091]
[1759973876965,1.85291441,226.53,226.48,16.1339032]
[1759973877140,0.7,226.52,226.48,15.4539032]
[1759973877346,4.4138422,226.56,226.48,15.4539032]
[1759973877347,1.15291441,226.57,226.49,0.68]
[1759973878147,1.15291441,226.56,226.49,0.68]
[1759973878766,1.15291441,226.56,226.5,4.41501103]
[1759973878951,1.15291441,226.56,226.5,16.13253862]
[1759973879148,1.85291441,226.6,226.51,0.68]
[1759973879348,1.15291441,226.6,226.53,20.8]
[1759973879561,1.15291441,226.57,226.5,16.13253862]
[1759973879764,1.15291441,226.54,226.5,16.13253862]
[1759973879961,1.15291441,226.55,226.5,15.45253862]
[1759973880141,1.15291441,226.55,226.5,4.41501103]
[1759973880345,1.15291441,226.52,226.48,4.41538272]
[1759973880656,1.85291441,226.51,226.48,4.41538272]
[1759973880963,1.15291441,226.52,226.47,15.45458559]
[1759973881162,1.15291441,226.52,226.47,16.13458559]
[1759973881163,0.7,226.52,226.47,16.13458559]
[1759973881369,1.15291441,226.53,226.48,0.68]
[1759973881744,0.7,226.52,226.47,4.41559588]
[1759973881945,0.7,226.51,226.47,4.41559588]
[1759973882276,1.15291441,226.48,226.45,4.41583712]
[1759973882473,1.85291441,226.48,226.45,4.41583712]
[1759973882675,1.15291441,226.49,226.45,4.41583712]
[1759973882977,1.85291441,226.5,226.45,5.09583712]
[1759973883587,0.7,226.54,226.46,0.68]
[1759973883775,1.15291441,226.54,226.46,0.68]
[1759973883973,0.5,226.54,226.46,0.68]
[1759973884271,1.15291441,226.53,226.46,0.68]
[1759973884975,1.15291441,226.53,226.47,15.45458559]
[1759973885178,1.15291441,226.54,226.48,0.68]
[1759973885676,0.68,226.53,226.38,11.04299256]
[1759973885850,1.15291441,226.48,226.42,0.68]
[1759973886261,1.15291441,226.49,226.42,0.68]
[1759973886456,1.15291441,226.49,226.43,20.8]
[1759973886644,1.15291441,226.49,226.44,0.68]
[1759973886843,1.83291441,226.5,226.45,0.68]
[1759973887068,1.15291441,226.5,226.46,4.41579086]
[1759973887258,1.15291441,226.49,226.46,4.41579086]
[1759973887947,1.15291441,226.49,226.44,4.41605433]
[1759973888267,1.83291441,226.48,226.44,4.41605433]
[1759973888458,4.41462912,226.52,226.44,4.41605433]
[1759973888656,1.83291441,226.47,226.44,4.41605433]
[1759973889053,1.15291441,226.46,226.44,4.41605433]
[1759973889258,0.68,226.46,226.44,4.41605433]
[1759973889462,1.15291441,226.45,226.44,4.41605433]
[1759973889857,1.80272264,226.45,226.44,4.41605433]
[1759973890878,1.80272264,226.46,226.4,0.68]
[1759973891077,1.80272264,226.46,226.4,16.13926285]
[1759973891286,1.80272264,226.46,226.41,0.68]
[1759973891449,1.80272264,226.46,226.4,15.45926285]
[1759973891649,1.80272264,226.46,226.41,0.68]
[1759973891877,1.80272264,226.46,226.4,15.45926285]
[1759973892066,1.80272264,226.46,226.41,0.68]
[1759973892373,1.80272264,226.46,226.42,4.41657097]
[1759973893251,1.80272264,226.47,226.42,16.1379984]
[1759973893657,1.80272264,226.47,226.43,0.68]
[1759973894060,1.80272264,226.47,226.42,15.4579984]
[1759973894271,2.48272264,226.47,226.42,15.4579984]
[1759973894468,1.80272264,226.46,226.42,11.04142743]
[1759973895569,1.80272264,226.44,226.41,4.41676604]
[1759973896061,0.68,226.44,226.41,4.41676604]
[1759973896265,1.80272264,226.44,226.41,4.41676604]
[1759973896465,1.80272264,226.42,226.41,4.41676604]
[1759973896675,1.80272264,226.44,226.41,4.41676604]
[1759973896853,2.48272264,226.45,226.41,4.41676604]
[1759973897049,1.80272264,226.44,226.41,4.41676604]
[1759973897250,0.68,226.43,226.41,4.41676604]
[1759973897560,2.48272264,226.42,226.37,4.51751546]
[1759973897764,0.68,226.41,226.37,4.51751546]
[1759973897981,1.80272264,226.39,226.37,4.51751546]
[1759973898158,0.68,226.4,226.37,4.51751546]
[1759973898359,1.80272264,226.4,226.37,4.51751546]
[1759973899165,1.80272264,226.38,226.37,0.1]
[1759973899874,0.68,226.38,226.37,0.1]
[1759973900181,20.8,226.46,226.37,0.1]
[1759973900357,1.80272264,226.42,226.37,16.24135467]
[1759973900556,1.80272264,226.42,226.38,0.68]
[1759973900857,1.80272264,226.42,226.37,15.56135467]
[1759973900858,1.80272264,226.42,226.39,4.41715623]
[1759973901057,2.48272264,226.42,226.39,4.41715623]
[1759973901276,0.5,226.44,226.37,4.51750266]
[1759973901477,1.80272264,226.43,226.37,15.56136889]
[1759973901805,2.30272264,226.44,226.38,0.68]
[1759973901956,0.5,226.44,226.38,0.68]
[1759973902273,2.30272264,226.44,226.38,0.68]
[1759973902473,1.80272264,226.43,226.38,0.68]
[1759973902782,1.80272264,226.41,226.37,15.56136889]
[1759973903380,1.80272264,226.41,226.37,16.24136889]
[1759973904075,2.48272264,226.4,226.37,0.1]
[1759973904298,23.71740622,226.49,226.37,0.1]
[1759973904299,1.80272264,226.38,226.37,0.1]
[1759973904658,2.48272264,226.38,226.37,0.1]
[1759973905957,0.68,226.38,226.37,0.1]
[1759973906179,1.80272264,226.39,226.37,0.1]
[1759973906862,1.80272264,226.39,226.37,4.51751995]
[1759973907067,0.68,226.42,226.37,5.19751995]
[1759973907377,1.80272264,226.4,226.37,4.51751995]
[1759973908078,1.18,226.41,226.37,4.51751995]
[1759973908284,1.80272264,226.4,226.37,4.51751995]
[1759973908864,1.80272264,226.4,226.37,5.19751995]
[1759973909064,2.30272264,226.41,226.37,5.19751995]
[1759973909266,0.5,226.41,226.38,0.68]
[1759973909491,2.30272264,226.41,226.38,0.68]
[1759973909985,2.30272264,226.41,226.37,4.51751995]
[1759973910186,1.80272264,226.4,226.37,4.51751995]
[1759973910579,1.80272264,226.38,226.37,0.1]
[1759973910886,2.48272264,226.38,226.37,0.1]
[1759973913563,0.68,226.38,226.37,0.1]
[1759973913778,2.48272264,226.38,226.37,0.1]
[1759973914488,6.90007399,226.38,226.37,0.1]
[1759973915076,2.48272264,226.38,226.37,0.1]
[1759973915277,0.68,226.38,226.37,0.1]
[1759973915485,1.80272264,226.38,226.37,0.1]
[1759973915978,2.52272264,226.38,226.37,0.1]
[1759973918073,6.94007399,226.38,226.37,0.1]
[1759973918875,8.74279663,226.38,226.37,0.1]
[1759973919273,16.01382656,226.38,226.37,0.1]
[1759973919479,19.61927184,226.38,226.37,0.1]
[1759973919972,40.41927184,226.38,226.37,0.1]
[1759973922170,36.81382656,226.38,226.37,0.1]
[1759973922372,22.60272264,226.38,226.37,0.1]
[1759973922574,1.22,226.41,226.37,0.1]
[1759973922769,1.80272264,226.38,226.37,0.1]
[1759973923078,1.80272264,226.39,226.37,0.1]
[1759973923281,1.80272264,226.39,226.37,4.51752603]
[1759973923497,31.64,226.38,226.37,5.19752603]
[1759973923798,1.80272264,226.39,226.37,5.19752603]
[1759973924095,33.44272264,226.39,226.37,0.78]
[1759973924469,33.44272264,226.39,226.37,5.19750717]
[1759973924904,1.80272264,226.38,226.37,0.1]
[1759973925100,5.58678201,226.41,226.37,0.1]
[1759973925277,1.80272264,226.38,226.37,0.1]
[1759973925795,33.44272264,226.38,226.37,0.1]
[1759973926873,34.11272264,226.38,226.37,0.1]
[1759973928091,0.5,226.41,226.37,0.1]
[1759973928282,1.80272264,226.38,226.37,0.1]
[1759973928980,32.31,226.38,226.37,0.1]
[1759973929188,34.11272264,226.38,226.37,0.1]
[1759973929498,32.31,226.38,226.37,0.1]
[1759973929677,34.11272264,226.38,226.37,0.1]
[1759973930280,33.44272264,226.38,226.37,0.1]
[1759973930897,1.80272264,226.38,226.37,0.1]
[1759973931201,38.53007399,226.38,226.37,0.1]
[1759973931599,34.11272264,226.38,226.37,0.1]
[1759973931805,46.79192049,226.38,226.37,0.1]
[1759973932775,51.20927184,226.38,226.37,0.1]
[1759973936889,6.22007399,226.38,226.37,0.1]
[1759973937088,58.66007399,226.38,226.37,0.1]
[1759973937291,37.86007399,226.38,226.37,0.1]
[1759973938401,1.80272264,226.38,226.37,0.78]
[1759973938703,33.44272264,226.38,226.37,0.78]
[1759973940601,1.80272264,226.38,226.37,0.78]
[1759973940801,33.44272264,226.38,226.37,0.78]
[1759973941102,1.80272264,226.38,226.37,0.78]
[1759973941306,21.3,226.41,226.37,0.78]
[1759973941480,1.80272264,226.38,226.37,0.78]
[1759973941680,33.44272264,226.38,226.37,0.78]
[1759973941985,31.64,226.38,226.37,0.78]
[1759973942185,1.80272264,226.38,226.37,0.78]
[1759973942393,33.44272264,226.38,226.37,0.78]
[1759973942583,1.80272264,226.38,226.37,0.78]
[1759973942788,1.80272264,226.38,226.37,0.1]
[1759973943006,33.44272264,226.38,226.37,0.1]
[1759973943508,1.80272264,226.38,226.37,0.1]
[1759973943685,1.80272264,226.38,226.37,5.19753976]
[1759973944080,33.44272264,226.38,226.37,5.19753976]
[1759973944282,33.44272264,226.38,226.37,0.78]
[1759973944806,1.80272264,226.38,226.37,5.19754649]
[1759973944992,33.44272264,226.38,226.37,5.19754649]
[1759973945380,33.44272264,226.38,226.37,0.78]
[1759973945579,33.44272264,226.38,226.37,5.19754649]
[1759973946905,33.44272264,226.38,226.37,0.78]
[1759973947484,33.44272264,226.38,226.37,0.1]
[1759973948504,31.64,226.38,226.37,0.1]
[1759973948679,33.44272264,226.38,226.37,0.1]
[1759973949283,1.80272264,226.38,226.37,0.1]
[1759973949482,35.89544528,226.38,226.37,0.1]
[1759973949891,38.0651145,226.38,226.37,0.1]
[1759973950498,42.48246585,226.38,226.37,0.1]
[1759973951505,10.86246585,226.38,226.37,0.1]
[1759973951715,37.86237425,226.38,226.37,0.1]
[1759973953624,1.1550229,226.38,226.37,0.1]
[1759973953788,32.7750229,226.38,226.37,0.1]
[1759973954411,1.1550229,226.38,226.37,0.1]
[1759973954593,0.5,226.41,226.37,5.19754649]
[1759973954784,31.62,226.4,226.39,4.41715623]
[1759973954998,32.7750229,226.4,226.39,5.09715623]
[1759973955204,32.7750229,226.4,226.39,0.68]
[1759973955699,32.7750229,226.4,226.38,4.41732637]
[1759973955899,1.1550229,226.39,226.38,4.41732637]
[1759973956510,1.1550229,226.39,226.38,5.09732637]
[1759973956511,32.7750229,226.39,226.38,5.09732637]
[1759973957109,0.5,226.41,226.38,5.09732637]
[1759973957308,32.7750229,226.4,226.39,0.68]
[1759973957619,31.62,226.4,226.39,0.68]
[1759973958516,1.6550229,226.41,226.39,0.68]
[1759973958818,32.12,226.41,226.39,0.68]
[1759973959012,33.2750229,226.41,226.39,0.68]
[1759973959209,33.2750229,226.41,226.39,5.09715028]
[1759973960619,33.2750229,226.41,226.38,4.41735135]
[1759973960917,33.2750229,226.41,226.38,5.11735135]
[1759973961725,33.2750229,226.41,226.38,0.7]
[1759973961901,1.1550229,226.39,226.37,0.1]
[1759973962097,31.62,226.39,226.37,0.1]
[1759973962339,1.1550229,226.38,226.37,0.1]
[1759973962507,1.8450229,226.38,226.37,0.1]
[1759973965214,10.88246585,226.38,226.37,0.1]
[1759973965520,21.75894106,226.38,226.37,0.1]
[1759973966311,47.58382656,226.38,226.37,0.1]
[1759973966625,53.35894106,226.38,226.37,0.1]
[1759973969319,53.85894106,226.38,226.37,0.1]
[1759973971431,22.25894106,226.38,226.37,0.1]
[1759973971608,53.85894106,226.38,226.37,0.1]
[1759973972206,22.25894106,226.38,226.37,0.1]
[1759973972526,53.85894106,226.38,226.37,0.1]
[1759973972911,22.25894106,226.38,226.37,0.1]
[1759973973115,53.85894106,226.38,226.37,0.1]
[1759973973312,22.25894106,226.38,226.37,0.1]
[1759973973804,5.60735135,226.38,226.37,0.1]
[1759973974022,42.98246585,226.38,226.37,0.1]
[1759973974903,22.25894106,226.38,226.37,0.1]
[1759973975107,53.85894106,226.38,226.37,0.1]
[1759973975440,53.85894106,226.38,226.23,20.8]
[1759973975733,53.85894106,226.38,226.13,49.75099222]
[1759973975734,20.8,226.33,226.24,5.12008486]
[1759973975903,1.1550229,226.28,226.25,0.71]
[1759973976110,31.6,226.27,226.25,0.71]
[1759973976317,1.1550229,226.28,226.25,0.71]
[1759973976625,1.1550229,226.29,226.25,0.71]
[1759973976835,1.1550229,226.26,226.24,0.71]
[1759973977006,21.8,226.26,226.25,0.71]
[1759973977702,32.7550229,226.26,226.25,0.71]
[1759973977903,1.1550229,226.28,226.25,0.71]
[1759973978099,4.6200916,226.38,226.25,0.71]
[1759973978329,1.1550229,226.31,226.25,0.71]
[1759973978732,31.38,226.3,226.25,0.71]
[1759973978905,0.66,226.38,226.26,4.41969415]
[1759973979235,1.1550229,226.33,226.27,0.71]
[1759973979404,1.1550229,226.32,226.27,0.71]
[1759973980026,31.6,226.34,226.28,4.41930351]
[1759973980235,1.1550229,226.32,226.29,0.71]
[1759973980814,1.1550229,226.33,226.29,0.71]
[1759973981706,1.6550229,226.33,226.29,0.71]
[1759973982307,1.6550229,226.33,226.3,4.41891294]
[1759973982611,0.5,226.33,226.31,0.71]
[1759973982816,0.5,226.33,226.32,0.71]
[1759973983441,1.6550229,226.33,226.32,0.71]
[1759973985528,1.6550229,226.33,226.3,0.7]
[1759973985829,1.6550229,226.33,226.31,0.7]
[1759973986330,1.6550229,226.33,226.32,0.7]
[1759973986726,1.6550229,226.33,226.3,4.41880665]
[1759973986924,1.6550229,226.33,226.31,0.7]
[1759973987232,1.6550229,226.33,226.32,0.7]
[1759973988437,1.6550229,226.33,226.27,11.04863337]
[1759973988438,1.6550229,226.33,226.3,0.7]
[1759973988616,1.6550229,226.33,226.31,0.7]
[1759973989229,1.6550229,226.33,226.27,11.04863337]
[1759973989426,1.1550229,226.32,226.29,0.7]
[1759973989614,1.1550229,226.32,226.3,0.7]
[1759973990006,33.4150229,226.31,226.23,21.5]
[1759973990211,1.1550229,226.26,226.23,0.7]
[1759973990440,1.1550229,226.27,226.24,0.7]
[1759973990847,1.1550229,226.28,226.24,0.7]
[1759973991163,1.1550229,226.28,226.25,5.1197047]
[1759973992356,4.41857613,226.32,226.12,22.11160352]
[1759973992357,1.1550229,226.26,226.12,22.11160352]
[1759973992648,1.1550229,226.25,226.22,0.7]
[1759973992942,0.68,226.29,226.23,0.7]
[1759973992943,1.1550229,226.27,226.23,0.7]
[1759973993128,31.58,226.27,226.24,0.7]
[1759973993519,1.1550229,226.28,226.24,0.7]
[1759973993726,31.58,226.31,226.25,0.7]
[1759973994024,32.7350229,226.31,226.25,0.7]
[1759973994437,1.1550229,226.3,226.25,0.7]
[1759973994738,1.1550229,226.3,226.26,0.7]